Cogmind - Beta 17 @@@ ROGUE MODE // 2026.08.24 @ 15:05:59 Player: OBLIQUE Result: Destroyed by Golem with Assembled Focal Cannon Performance ------------- Evolutions (3) 1500 Regions Visited (10) 2000 Robots Destroyed (141) 705 Value Destroyed (4259) 4259 Prototype IDs (34) 680 Alien Tech Used (0) 0 Bonus (2737) 2737 TOTAL SCORE: 11881 Bonus ------- High Alert Combat Kills 22 Follower Combat Kills 415 Aligned with FarCom 300 Destroyed Z-Imprinter 1000 Triggered Deep Caves Wall 500 Exposed GOLEM Chamber 500 Cogmind --------- Core Integrity 0/700 Matter 285/300 Energy 150/150 System Corruption 0% Temperature Cool (60) Movement Core (450) Ox8 Location -7/Deep Caves Parts ------- > --- POWER (2) -------- Micro Nuclear Core > --- PROPULSION (2) --- (None) > --- UTILITY (7) ------ Large Storage Unit Advanced Targeting Computer Target Analyzer > --- WEAPON (2) ------- (None) > --- INVENTORY (15) --- Improved Treads Armored Treads Improved Heat Sink Coolant Injector Weapon Cycler Zionite Weapon Casing Missile Launcher Improved Datajack CR-A16's Pointy Stick Self-destruct Interrupter (50) Peak State ------------ > --- POWER ------------ Improved Ion Engine Micro Nuclear Core > --- PROPULSION ------- Armored Treads Medium Treads > --- UTILITY ---------- Improved Heat Sink Cooling System Large Storage Unit Advanced Targeting Computer Target Analyzer Decoy Drone Bay > --- WEAPON ----------- YOLO Cannon > --- INVENTORY -------- Micro Nuclear Core Improved Treads Armored Treads Coolant Injector Weapon Cycler Hardlight Generator Gauss Rifle Gauss Rifle Missile Launcher Improved Datajack CR-A16's Pointy Stick Self-destruct Interrupter [Rating: 63] Favorites ----------- Power Improved Ion Engine Engine Improved Ion Engine Power Core Micro Nuclear Core Reactor Zionite Light DM Reactor Propulsion Light Treads Treads Light Treads Hover Unit Zionite Glidesys I Utility Large Storage Unit Device Improved Heat Sink Storage Large Storage Unit Processor Advanced Targeting Computer Hackware System Shield Protection Improved Light Armor Plating Weapon Heavy EM Shotgun Energy Gun Heavy EM Shotgun Energy Cannon YOLO Cannon Ballistic Gun Gauss Rifle Ballistic Cannon Light Cannon Launcher Missile Launcher Special Melee Weapon Improved Datajack Build | -11 -10 -10 -10 -9 -8 -7 -7 -7 -7 -7 ------- Run | Yrd Mat Min Exi Min Mat Fac Low Low Zio Dee Slots Evolved 6 | . . . . . 4 2 . . . . Power 1 | . . . . . . 1 . . . . Propulsion . | . . . . . . . . . . . Utility 5 | . . . . . 4 1 . . . . Weapon . | . . . . . . . . . . . Parts Attached 83 | 7 9 2 2 6 27 12 4 2 2 10 Power 14 | 2 2 2 . 1 2 2 . . . 3 Engine 10 | 2 2 2 . 1 2 1 . . . . Core 2 | . . . . . . 1 . . . 1 Reactor 2 | . . . . . . . . . . 2 Propulsion 14 | 2 2 . . 2 5 . . 1 . 2 Treads 12 | 2 2 . . 2 5 . . 1 . . Leg . | . . . . . . . . . . . Wheel . | . . . . . . . . . . . Hover 2 | . . . . . . . . . . 2 Flight . | . . . . . . . . . . . Utility 34 | 1 2 . . 3 13 6 2 1 1 5 Device 12 | . . . . . 6 2 1 1 1 1 Storage 4 | 1 1 . . . 1 . . . . 1 Processor 5 | . 1 . . . 1 3 . . . . Hackware 1 | . . . . . 1 . . . . . Protection 12 | . . . . 3 4 1 1 . . 3 Artifact . | . . . . . . . . . . . Weapon 21 | 2 3 . 2 . 7 4 2 . 1 . Energy Gun 5 | . . . . . 2 2 1 . . . Energy Cannon 1 | . . . . . . . . . 1 . Ballistic Gun 8 | 2 1 . . . 3 2 . . . . Ballistic Cannon 4 | . 2 . 2 . . . . . . . Launcher 2 | . . . . . 1 . 1 . . . Special Weapon . | . . . . . . . . . . . Impact Weapon . | . . . . . . . . . . . Slashing Weapon . | . . . . . . . . . . . Piercing Weapon . | . . . . . . . . . . . Special Melee Weapon 1 | . . . . . 1 . . . . . Unidentified Prototypes 9 | . . . . . 1 . . . 1 7 Parts Lost 18 | . . . . 2 3 2 . 1 . 10 Power 4 | . . . . 1 . . . . . 3 Propulsion 3 | . . . . 1 . . . . . 2 Utility 10 | . . . . . 3 2 . 1 . 4 Weapon 1 | . . . . . . . . . . 1 Highest Loss Streak 8 | . . . . 2 1 1 . 1 . 8 To Critical Strikes 1 | . . . . . . . . . . 1 Average Backups 12 | . 11 14 14 12 12 12 13 13 11 11 Power . | . 1 1 2 . . . 1 1 1 . Propulsion 2 | . 4 5 5 3 2 2 2 2 2 2 Utility 4 | . 4 5 4 5 4 2 2 3 3 4 Weapon 3 | . . 2 1 2 3 6 6 5 4 2 Tool/Special . | . . . . . . . . . . . Unused Backups 25 | . 4 . 1 6 7 2 . . 1 4 Power 1 | . 1 . . . . . . . . . Propulsion 6 | . . . . 4 1 . . . . 1 Utility 12 | . 3 . 1 2 3 1 . . . 2 Weapon 5 | . . . . . 2 1 . . 1 1 Tool/Special 1 | . . . . . 1 . . . . . Average Slot Usage (%) 97 | . 99 100 100 99 97 99 100 94 97 83 Engine 9 | . 14 14 14 13 9 7 7 7 7 4 Core 3 | . . . . . . 6 7 7 7 2 Treads 19 | . 28 28 28 28 18 15 15 15 15 14 Device 12 | . . . . . 17 21 15 16 23 15 Storage 10 | . 14 14 14 14 9 13 7 7 7 7 Processor 12 | . 12 14 14 8 9 8 15 15 15 15 Protection 6 | . . . . 5 15 7 15 8 4 3 Energy Gun 3 | . . . . . 1 7 14 12 5 . Ballistic Gun 9 | . 21 . . . 15 7 . . 8 12 Ballistic Cannon 6 | . 6 28 28 28 . . . . . . Peak Build Rating 63 | 6 9 9 10 14 39 47 45 46 63 61 Average Rating 31 | 4 8 9 9 12 29 45 44 42 48 52 On Entrance 24 | . 6 9 9 10 14 39 45 44 46 52 Avg Prop Armor Cover (%) . | . . . . . . . . . . . Naked Turns . | . . . . . . . . . . . Heaviest Build 68 | 14 34 31 29 38 48 60 60 59 68 62 Greatest Support 48 | 40 40 40 40 40 46 43 43 48 48 48 Greatest Overweight (x) 2 | . . . . . 1 1 1 1 1 2 Average Overweight (x) . | . . . . . . 1 1 1 1 . Largest Inventory Capacity 15 | 8 15 15 15 15 15 15 15 15 15 15 Average Capacity 14 | 7 14 15 15 15 15 15 15 15 15 15 Most Carried 15 | 1 15 15 15 15 15 15 15 15 15 15 Average Carried 13 | . 11 14 14 14 14 14 14 14 13 13 Final Capacity 15 | 8 15 15 15 15 15 15 15 15 15 15 Final Carried 15 | 1 15 15 14 15 15 15 15 15 12 10 Class Distribution -------------------- 72% | Mutant 12% | Derelict-Mutant 8% | Scavenger-Mutant 6% | Skirmisher Dominant Class ---------------- Mutant | -10/Materials Mutant | -10/Mines Mutant | -10/Exiles Mutant | -9/Mines Mutant | -8/Materials Mutant | -7/Factory Scavenger-Mutant | -7/Lower Caves Mutant | -7/Lower Caves Derelict-Mutant | -7/Zion Mutant | -7/Deep Caves Resources | -11 -10 -10 -10 -9 -8 -7 -7 -7 -7 -7 ----------- Run | Yrd Mat Min Exi Min Mat Fac Low Low Zio Dee Matter Collected 3338 | 253 537 220 . 335 857 350 230 230 39 287 Remotely . | . . . . . . . . . . . Salvage Created 4464 | 51 728 254 . 416 1231 766 319 336 . 363 Parts 245 | 3 48 14 . 25 83 32 14 22 . 4 Haulers Intercepted 2 | . 2 . . . . . . . . . Recyclers Shooed 6 | . 2 2 . 1 1 . . . . . Parts Field Recycled . | . . . . . . . . . . . Retrieved Matter . | . . . . . . . . . . . Parts Self-Destructed 34 | . . . . . . . 16 16 2 . Prevented 12 | . . . . . . . 2 10 . . Parts Restored . | . . . . . . . . . . . Kills | -11 -10 -10 -10 -9 -8 -7 -7 -7 -7 -7 ------- Run | Yrd Mat Min Exi Min Mat Fac Low Low Zio Dee Combat Hostiles Destroyed 134 | . 16 13 . 13 30 7 12 15 . 28 Guns 55 | . 13 . . . 28 6 3 4 . 1 Cannons 32 | . 3 13 . 13 . . . . . 3 AOE 45 | . . . . . 2 . 9 11 . 23 Classes Destroyed 18 | 1 7 2 . 3 2 1 1 . . 1 Worker 9 | . 1 . . 1 6 1 . . . . Builder 2 | . . . . . 1 1 . . . . Tunneler 2 | . . . . 1 1 . . . . . Hauler 2 | . 2 . . . . . . . . . Recycler 6 | 1 1 1 . 1 . 2 . . . . Mechanic 1 | . 1 . . . . . . . . . Operator 5 | . 2 . . . 2 1 . . . . Watcher 8 | . 3 . . . 1 4 . . . . Swarmer 33 | . 6 6 . 3 10 . 1 7 . . Grunt 53 | . 10 4 . 8 11 3 9 8 . . Brawler 1 | . . . . . . . 1 . . . Duelist 1 | . . . . 1 . . . . . . Sentry 12 | . . . . 1 8 2 1 . . . Demolisher 1 | . . 1 . . . . . . . . Hunter 1 | . . . . . 1 . . . . . Programmer 2 | . . . . . . 2 . . . . Assembled 28 | . . 2 . . . . . . . 26 Golem 1 | . . . . . . . . . . 1 Best Kill Streak 26 | 1 6 3 . 6 9 3 6 4 . 26 Combat Bots Only 26 | . 4 3 . 6 4 3 6 4 . 26 Max Kills in Single Turn 10 | 1 2 2 . 1 3 1 3 3 . 10 Gunslinging 1 | . 1 . . . . . 1 . . . Exploded 9 | . . . . . 1 . 3 3 . 9 Melee . | . . . . . . . . . . . Uniques/NPCs Destroyed 1 | . . . . . . . . . . 1 Z-Imprinter (-7/Deep Caves) Combat | -11 -10 -10 -10 -9 -8 -7 -7 -7 -7 -7 -------- Run | Yrd Mat Min Exi Min Mat Fac Low Low Zio Dee Hostile Shots Fired 536 | . 52 35 . 41 121 73 45 53 . 116 Missed 166 | . 15 8 . 15 24 35 20 19 . 30 Hits 370 | . 37 27 . 26 97 38 25 34 . 86 Melee 7 | . . . . 1 . . . . . 6 Projectile 363 | . 37 27 . 25 97 38 25 34 . 80 AOE 1 | . . 1 . . . . . . . . Critical Strikes 7 | . . . . 2 3 . 1 . . 1 Part Disruptions 1 | . . . . . . . . . . 1 Damage Taken 5309 | . 403 358 . 335 1204 292 331 460 . 1926 Core 987 | . 50 29 . 47 142 39 . 48 . 632 Absorbed by Shields 500 | . . . . . 116 136 100 136 . 12 Redirected to Shielding 133 | . . . . . . . . . . 133 Regen/Repaired (Parts) 77 | . 48 . . . . . . . 29 . Core Remaining (%) 74 | 100 . . . 49 74 . . . . . Volleys Fired 292 | 1 67 25 . 33 85 28 13 14 4 22 Largest 2 | 2 2 2 . 2 2 2 2 2 1 2 Hottest 100 | 40 60 60 . 60 58 100 100 100 100 100 Shots Fired 566 | 2 134 50 . 66 166 57 22 27 4 38 Gun 395 | 2 108 . . . 164 57 15 16 1 32 Cannon 151 | . 26 50 . 66 . . . . 3 6 Launcher 20 | . . . . . 2 . 7 11 . . Special . | . . . . . . . . . . . Kinetic 471 | 2 134 50 . 66 164 22 . . 1 32 Thermal 9 | . . . . . . . . . 3 6 Explosive 20 | . . . . . 2 . 7 11 . . Electromagnetic 66 | . . . . . . 35 15 16 . . Robot Hit Streak 33 | 2 19 6 . 7 33 25 11 8 . 4 Robot Miss Streak 7 | . 2 2 . 7 3 5 2 4 . 3 Penetration Max 1 | . . . . . . 1 . . . . Secondary Targets 8 | . 4 . . . 2 . 1 . . 1 Max Gunslinging Chain 1 | . 1 . . . 1 . 1 . . 1 Shots Hit Robots 386 | 2 95 28 . 35 130 41 18 18 . 19 Core Hits 271 | 2 37 18 . 18 76 34 30 26 . 30 Critical Kills 2 | . 1 . . . . . . . . 1 Critical Parts Destroyed 5 | . . . . . 4 . . . . 1 Critical Strikes 11 | . 1 1 . 3 4 . . . . 2 Meltdown 1 | . . . . . . . . . . 1 Destroy 6 | . 1 . . . 4 . . . . 1 Blast 4 | . . 1 . 3 . . . . . . Melee Attacks . | . . . . . . . . . . . Impact . | . . . . . . . . . . . Slashing . | . . . . . . . . . . . Piercing . | . . . . . . . . . . . Sneak Attacks . | . . . . . . . . . . . Combat Hostiles . | . . . . . . . . . . . Follow-up Attacks . | . . . . . . . . . . . Damage Inflicted 12894 | 26 1430 542 . 682 2686 1197 1811 1664 . 2856 Guns 5204 | 26 995 . . . 2363 1017 223 218 . 362 Cannons 1990 | . 378 528 . 650 . . . . . 434 Explosions 5551 | . . . . . 291 166 1588 1446 . 2060 Melee . | . . . . . . . . . . . Ramming 149 | . 57 14 . 32 32 14 . . . . Kinetic 5644 | 26 1373 528 . 650 2363 342 . . . 362 Thermal 2660 | . . . . . . 166 . . . 2494 Explosive 3325 | . . . . . 291 . 1588 1446 . . Electromagnetic 1116 | . . . . . . 675 223 218 . . Impact . | . . . . . . . . . . . Slashing . | . . . . . . . . . . . Piercing . | . . . . . . . . . . . Highest Corruption 4 | . . . . . . 4 4 4 4 . Average Corruption 3 | . . . . . . 2 4 4 4 . Corruption Purged . | . . . . . . . . . . . Corruption Blocked . | . . . . . . . . . . . Effects 53 | . . . . . . 19 15 17 2 . Message Errors 9 | . . . . . . 4 3 2 . . Matter Fused 12 | . . . . . . 4 3 5 . . Heat Flow Errors 6 | . . . . . . 3 2 . 1 . Energy Discharges 7 | . . . . . . 1 3 3 . . Parts Fused 1 | . . . . . . . . 1 . . Data Loss (minor) 7 | . . . . . . 3 1 3 . . Data Loss (major) 3 | . . . . . . 1 . 1 1 . Misfires 6 | . . . . . . 2 2 2 . . Weapon Failures 2 | . . . . . . 1 1 . . . Overload Shots . | . . . . . . . . . . . Overflow Damage 449 | . . 15 . . 5 3 2 16 . 408 Projectiles 188 | . . 15 . . . . . . . 173 Explosions 261 | . . . . . 5 3 2 16 . 235 Melee . | . . . . . . . . . . . Knockbacks 13 | . 7 2 . 4 . . . . . . Impact 1 | . . 1 . . . . . . . . Kinetic 12 | . 7 1 . 4 . . . . . . Secondary . | . . . . . . . . . . . Self-Inflicted Damage 101 | . . . . . . . . 42 . 59 Shots 3 | . . . . . . . . 2 . 1 Rammed 30 | . 10 5 . 4 8 3 . . . . Targets Rammed 34 | . 11 5 . 5 10 3 . . . . Kicked . | . . . . . . . . . . . Crushed 4 | . 1 . . 1 2 . . . . . Highest Temperature 143 | . 42 63 . 129 17 90 143 17 45 56 Average Temperature 31 | . 26 34 . 41 5 25 35 6 45 22 Received Heat Transfer 1417 | . 156 134 . 132 348 42 152 102 . 351 Siege Activations . | . . . . . . . . . . . Martial Activations . | . . . . . . . . . . . Shielding Activations . | . . . . . . . . . . . Robots Disrupted . | . . . . . . . . . . . Combat Hostiles . | . . . . . . . . . . . Robots Corrupted 1 | . . . . . . 1 . . . . Combat Hostiles 1 | . . . . . . 1 . . . . Parts Fried 7 | . . . . . . 6 . 1 . . Impact Corruptions . | . . . . . . . . . . . Robots Melted 1 | . . . . . . . . . . 1 Combat Hostiles 1 | . . . . . . . . . . 1 Parts Melted 1 | . . . . 1 . . . . . . Heat Transferred 2570 | . . . . . . 250 . . . 2320 Parts Sabotaged . | . . . . . . . . . . . Parts Stolen . | . . . . . . . . . . . Parts Stripped . | . . . . . . . . . . . Power Chain Reactions 1 | . . . . . . 1 . . . . Alert | -11 -10 -10 -10 -9 -8 -7 -7 -7 -7 -7 ------- Run | Yrd Mat Min Exi Min Mat Fac Low Low Zio Dee Maximum Alert Level 2 | . . . . 1 2 . . . . . Low Security (%) 78 | 100 100 100 . 98 31 100 . . . . Level 1 17 | . . . . 1 55 . . . . . Level 2 4 | . . . . . 13 . . . . . Level 3 . | . . . . . . . . . . . Level 4 . | . . . . . . . . . . . Level 5 . | . . . . . . . . . . . High Security . | . . . . . . . . . . . Max Security . | . . . . . . . . . . . Peak Influence 436 | 5 151 117 . 200 436 191 . . . . Initial 191 | . . 27 . . 41 191 . . . . Average 110 | . 65 28 . 108 229 45 . . . . Influence Increases 3288 | 5 536 275 . 469 1044 331 288 340 . . Destroy 0b10 Robot/C 2240 | . 320 220 . 360 640 140 260 300 . . Destroy 0b10 Robot/NC 170 | 5 50 5 . 15 55 40 . . . . Destroy Leader 470 | . 80 40 . 50 172 68 20 40 . . Allied During Kill 56 | . . . . 43 5 . 8 . . . Trap Triggered on 0b10 10 | . . 10 . . . . . . . . Successful Hack 94 | . 37 . . . 31 26 . . . . Disable Machine 60 | . . . . . 30 30 . . . . Destroy Structure 53 | . 4 . . 1 21 27 . . . . Lose Combat Pursuer 135 | . 45 . . . 90 . . . . . Influence Decreases 3288 | 5 464 347 . 362 729 624 361 262 134 . Entered New Map 535 | . . 45 . . 66 231 48 11 134 . Time Decay 2598 | 5 464 302 . 302 613 373 293 246 . . Lost Part 75 | . . . . 20 30 20 . 5 . . Lost Ally 80 | . . . . 40 20 . 20 . . . Squads Dispatched 20 | . 4 . . . 9 7 . . . . Investigation 4 | . 2 . . . 1 1 . . . . Extermination 2 | . . . . . . 2 . . . . Reinforcement 6 | . 2 . . . 3 1 . . . . Assault . | . . . . . . . . . . . Garrison 8 | . . . . . 5 3 . . . . Intercept . | . . . . . . . . . . . Searches Triggered . | . . . . . . . . . . . Construction Impeded 2 | . . . . . 1 1 . . . . Haulers Reinforced . | . . . . . . . . . . . Active Scanning Responses . | . . . . . . . . . . . Cargo Convoy Interrupts . | . . . . . . . . . . . Stealth | -11 -10 -10 -10 -9 -8 -7 -7 -7 -7 -7 --------- Run | Yrd Mat Min Exi Min Mat Fac Low Low Zio Dee Distress Signals 6 | . 1 . . . 3 2 . . . . Communications Jammed . | . . . . . . . . . . . Distress Signals . | . . . . . . . . . . . Times Spotted 204 | . 26 14 . 18 45 18 14 15 . 54 Peak Tracking Total 38 | . 4 3 . 4 7 4 7 4 . 38 Tactical Retreats 8 | . 2 1 . . 5 . . . . . Traps | -11 -10 -10 -10 -9 -8 -7 -7 -7 -7 -7 ------- Run | Yrd Mat Min Exi Min Mat Fac Low Low Zio Dee Traps Triggered 2 | . 1 . . . . 1 . . . . Indirectly . | . . . . . . . . . . . Trap Hack Attempts 49 | . . . . . 44 5 . . . . Triggered 1 | . . . . . . 1 . . . . Disarmed 1 | . . . . . 1 . . . . . Reprogrammed 1 | . . . . . 1 . . . . . Reused 1 | . . 1 . . . . . . . . Traps Extracted . | . . . . . . . . . . . Installed 5 | . . 5 . . . . . . . . Triggered 1 | . . 1 . . . . . . . . Most Traps Carried 1 | . . 1 . . . . . . . . Machines | -11 -10 -10 -10 -9 -8 -7 -7 -7 -7 -7 ---------- Run | Yrd Mat Min Exi Min Mat Fac Low Low Zio Dee Machines Disabled 12 | . . . . . 2 2 1 . 3 4 Max in Single Turn 2 | . . . . . 1 2 1 . 1 1 Machines Repaired . | . . . . . . . . . . . Machines Dismantled . | . . . . . . . . . . . Machines Sabotaged . | . . . . . . . . . . . Overloaded Fab Kills . | . . . . . . . . . . . Hacking | -11 -10 -10 -10 -9 -8 -7 -7 -7 -7 -7 --------- Run | Yrd Mat Min Exi Min Mat Fac Low Low Zio Dee Machines Accessed 29 | . 9 . 2 1 11 6 . . . . Terminals 18 | . 6 . . . 7 5 . . . . Fabricators . | . . . . . . . . . . . Repair Stations 1 | . 1 . . . . . . . . . Recycling Units 4 | . 2 . . . 2 . . . . . Scanalyzers 1 | . . . . . 1 . . . . . Garrison Access 2 | . . . . . 1 1 . . . . Total Hacks 87 | . 33 . 5 1 33 15 . . . . Successful 41 | . 15 . 5 1 15 5 . . . . Failed 45 | . 18 . . . 17 10 . . . . Catastrophic 8 | . . . . . 3 5 . . . . Database Lockouts 1 | . . . . . 1 . . . . . Manual 61 | . 27 . 1 . 21 11 . . 1 . Terminals 58 | . 25 . . . 21 12 . . . . Fabricators . | . . . . . . . . . . . Repair Stations 4 | . 4 . . . . . . . . . Recycling Units 9 | . 4 . . . 5 . . . . . Scanalyzers 3 | . . . . . 3 . . . . . Garrison Access 7 | . . . . . 4 3 . . . . Terminal Hacks 19 | . 7 . 5 1 5 1 . . . . Record 4 | . . . 4 . . . . . . . Robot Analysis 5 | . 4 . . . 1 . . . . . Prototype ID Bank 1 | . . . . . 1 . . . . . Open Door 1 | . . . . 1 . . . . . . Machine Index 1 | . . . . . . 1 . . . . Terminal Index 2 | . 1 . . . 1 . . . . . Alert Level 1 | . . . . . 1 . . . . . Locate Traps 3 | . 2 . . . 1 . . . . . Proto ID Catalog 1 | . . . 1 . . . . . . . Fabricator Hacks . | . . . . . . . . . . . Repair Station Hacks 2 | . 2 . . . . . . . . . Scan Component 1 | . 1 . . . . . . . . . Repair 1 | . 1 . . . . . . . . . Recycling Unit Hacks . | . . . . . . . . . . . Scanalyzer 3 | . . . . . 3 . . . . . Retrieve Study 3 | . . . . . 3 . . . . . Garrison Access Hacks . | . . . . . . . . . . . Unauthorized Hacks 17 | . 6 . . . 7 4 . . . . Terminals 12 | . 4 . . . 4 4 . . . . Assimilate 2 | . . . . . 1 1 . . . . Botnet 9 | . 3 . . . 3 3 . . . . Operators 1 | . 1 . . . . . . . . . Fabricators . | . . . . . . . . . . . Repair Stations 1 | . 1 . . . . . . . . . Patch 1 | . 1 . . . . . . . . . Recycling Units 4 | . 1 . . . 3 . . . . . Reject 1 | . . . . . 1 . . . . . Mask 3 | . 1 . . . 2 . . . . . Scanalyzers . | . . . . . . . . . . . Garrison Access . | . . . . . . . . . . . Data Cores Recovered 1 | . . . . . 1 . . . . . Used . | . . . . . . . . . . . Hacking Detections 25 | . 8 . . . 11 6 . . . . Full Trace Events 3 | . 1 . . . 1 1 . . . . Feedback Events 1 | . . . . . . 1 . . . . Corruption 1 | . . . . . . 1 . . . . Feedback Blocked . | . . . . . . . . . . . Robot Schematics Acquired 3 | . . . . . . . . . 3 . Robots Built . | . . . . . . . . . . . Authchips . | . . . . . . . . . . . Time . | . . . . . . . . . . . Total Robot Build Rating . | . . . . . . . . . . . Part Schematics Acquired 14 | . . . . . . . . . 14 . Parts Built . | . . . . . . . . . . . Authchips . | . . . . . . . . . . . Time . | . . . . . . . . . . . Total Part Build Rating . | . . . . . . . . . . . Part Studies Acquired 3 | . . . . . 3 . . . . . Parts Repaired 1 | . 1 . . . . . . . . . Time 26 | . 26 . . . . . . . . . Parts Recycled . | . . . . . . . . . . . Recycled Matter . | . . . . . . . . . . . Retrieved Matter . | . . . . . . . . . . . Retrieved Components . | . . . . . . . . . . . Parts Scanalyzed . | . . . . . . . . . . . Part Schematics Acquired . | . . . . . . . . . . . Parts Damaged . | . . . . . . . . . . . Bothacking | -11 -10 -10 -10 -9 -8 -7 -7 -7 -7 -7 ------------ Run | Yrd Mat Min Exi Min Mat Fac Low Low Zio Dee Used RIF Installer . | . . . . . . . . . . . Robots Hacked . | . . . . . . . . . . . Non-combat . | . . . . . . . . . . . Combat . | . . . . . . . . . . . Robot Hacks Applied . | . . . . . . . . . . . Relay Couplers Released . | . . . . . . . . . . . Fabnet Peak Effective % . | . . . . . . . . . . . Robots Rewired 2 | . . . . . . . 2 . . . Allies Hacked . | . . . . . . . . . . . Hacks Repelled . | . . . . . . . . . . . Allies | -11 -10 -10 -10 -9 -8 -7 -7 -7 -7 -7 -------- Run | Yrd Mat Min Exi Min Mat Fac Low Low Zio Dee Total Allies 9 | . . 3 . . 1 1 2 . 2 . Largest Group 3 | . . 3 3 3 1 2 2 . 2 2 Highest-Rated Group 192 | . . 40 40 40 10 36 46 . 192 192 Highest-Rated Ally 96 | . . 16 16 16 10 26 30 . 96 96 Total Orders 1 | . . . . . . . . . . 1 RETURN 1 | . . . . . . . . . . 1 Ally Attacks 100 | . . 3 . 29 6 . 6 . . 56 Total Damage 3965 | . . 26 . 315 54 . 70 . . 3500 Kills 22 | . . 1 . 5 2 . 1 . . 13 Allies Corrupted . | . . . . . . . . . . . Allies Melted . | . . . . . . . . . . . Intel | -11 -10 -10 -10 -9 -8 -7 -7 -7 -7 -7 ------- Run | Yrd Mat Min Exi Min Mat Fac Low Low Zio Dee Active Infowar (turns) 830 | . . . . . 830 . . . . . Terrain 830 | . . . . . 830 . . . . . Robot Analysis Total 5 | . 4 . . . 1 . . . . . Derelict Logs Recovered 6 | . . 2 . 1 . . 1 . 2 . Drone Launches 21 | . . . . . . . . . . 21 Drone Recoveries 5 | . . . . . . . . . . 5 Exploration | -11 -10 -10 -10 -9 -8 -7 -7 -7 -7 -7 ------------- Run | Yrd Mat Min Exi Min Mat Fac Low Low Zio Dee Turns Passed 12717 | 87 1717 1142 371 920 2459 1649 830 538 2301 703 Spaces Moved 5226 | 49 871 645 229 470 686 596 308 191 917 264 Core 5 | 5 . . . . . . . . . . Treads 5221 | 44 871 645 229 470 686 596 308 191 917 264 Legs . | . . . . . . . . . . . Wheels . | . . . . . . . . . . . Hover . | . . . . . . . . . . . Flight . | . . . . . . . . . . . Fastest Speed 50 | 50 160 160 160 160 160 245 245 245 245 165 Average Speed 202 | 148 160 160 160 160 208 245 245 245 245 227 Slowest Speed 330 | 160 160 160 160 160 245 245 245 245 245 330 Overloaded Moves . | . . . . . . . . . . . Propulsion Burnouts . | . . . . . . . . . . . Robots Hopped . | . . . . . . . . . . . Potential Cave-ins . | . . . . . . . . . . . Cave-ins Triggered . | . . . . . . . . . . . Exploration Rate (%) 60 | 4 97 94 61 80 71 18 48 37 82 72 Regions Visited 10 Branch Regions 7 Pre-discovered Areas 2 | . . . 1 1 . . . . . . Known Exits Taken 1 | . . . . . . 1 . . . . Unknown Exits Taken 9 | 1 1 1 1 1 1 . 1 1 1 . Scrap Searched 8 | . . 1 . 1 . . 2 1 3 . Spaces Dug 1 | . . . . . . . . . 1 . Terrain Destroyed 234 | . . . . . 13 34 56 117 10 4 Melee . | . . . . . . . . . . . Projectile 4 | . . . . . . . . . 1 3 AOE 230 | . . . . . 13 34 56 117 9 1 Terrain Rammed . | . . . . . . . . . . . Walls Destroyed . | . . . . . . . . . . . Machines Disabled . | . . . . . . . . . . . Actions | -11 -10 -10 -10 -9 -8 -7 -7 -7 -7 -7 --------- Run | Yrd Mat Min Exi Min Mat Fac Low Low Zio Dee Total 6792 | 58 1058 703 234 574 1562 724 360 233 966 320 Wait 907 | 2 69 17 . 41 655 68 7 19 27 2 Move 5216 | 48 870 644 228 469 685 595 307 190 916 264 Hop . | . . . . . . . . . . . Pick Up 57 | . 18 1 1 8 19 4 2 1 3 . Fast Attach 35 | 6 5 . . 1 4 5 . 1 . 13 Attach 17 | . . . . 2 5 2 . . 4 4 Detach 10 | . 1 . . 1 . 1 . . 4 3 Swap 66 | 1 5 3 2 4 25 8 10 6 2 . Drop 87 | . 12 3 3 10 30 5 4 2 6 12 Fire 292 | 1 67 25 . 33 85 28 13 14 4 22 Melee . | . . . . . . . . . . . Ram . | . . . . . . . . . . . Kick . | . . . . . . . . . . . Crush 34 | . 11 5 . 5 10 3 . . . . Escape Stasis . | . . . . . . . . . . . Rewire 17 | . . . . . . . 17 . . . Trap 54 | . . 5 . . 44 5 . . . . Miscellaneous . | . . . . . . . . . . . Route ------- -11/Scrapyard -10/Materials (discovered 6 exits: [*Mat x3] / [*Min x2] / [*Sub]) -10/Mines (discovered 3 exits: [*Mat x2] / *Exi) -10/Exiles -9/Mines -8/Materials (discovered 2 exits: *Fac x2) -7/Factory -7/Lower Caves -7/Lower Caves (discovered 2 exits: [*Fac] / *Zio) -7/Zion (discovered 2 exits: [*Dee] / [*Pro]) -7/Deep Caves History --------- Turn | Location | Event 3 | -11/Scrapyard | Discovered new exit (range 16) 88 | -11/Scrapyard | Entered Materials 189 | -10/Materials | Discovered new exit (range 10) 312 | -10/Materials | Build established: Mutant 508 | -10/Materials | Discovered new exit (range 8) 752 | -10/Materials | Discovered new exit (range 10) 864 | -10/Materials | Discovered new exit (range 13) 903 | -10/Materials | Discovered new exit (range 11) 1258 | -10/Materials | Discovered new exit (range 6) 1593 | -10/Materials | Repaired Lgt. Treads 1805 | -10/Materials | Entered Mines 1817 | -10/Mines | Discovered new exit (range 11) 1932 | -10/Mines | Found a hidden stash of uninstalled traps 1989 | -10/Mines | Assembled infested the area 2651 | -10/Mines | Assisted by bots powering up and referring to "LRC-V3" 2702 | -10/Mines | Learned Materials non-interactive machine intel 2727 | -10/Mines | Discovered new exit (range 10) 2755 | -10/Mines | Learned Materials garrison access intel 2931 | -10/Mines | Deemed a non-threat by the Exiles lab entrance 2933 | -10/Mines | Discovered new exit (range 5) 2947 | -10/Mines | Entered Exiles 2947 | -10/Exiles | Accompanied by 3 allies 2984 | -10/Exiles | Met 8R-AWN 3016 | -10/Exiles | Met EX-HEX 3059 | -10/Exiles | Met EX-BIN 3102 | -10/Exiles | Aligned with FarCom system 3104 | -10/Exiles | Given EX-Vault access code 3141 | -10/Exiles | Opened EX-Vault 3155 | -10/Exiles | Found YOLO Cannon 3191 | -10/Exiles | Warned to stay clear of 0b10 Research branches 3241 | -10/Exiles | Met EX-DEC 3252 | -10/Exiles | Learned location of Zion (-7) 3305 | -10/Exiles | Discovered new exit (range 10) 3318 | -10/Exiles | Left Exiles lab with YOLO Cannon 3318 | -10/Exiles | Entered Mines 3318 | -9/Mines | Accompanied by 3 allies 3340 | -9/Mines | Found the Drone Emporium 3347 | -9/Mines | Found Prototype Device 3834 | -9/Mines | Joined a pair of Derelicts in attacking an 0b10 outpost 3963 | -9/Mines | Core integrity fell below 50% 3973 | -9/Mines | Learned location of Recycling (-9) 3983 | -9/Mines | Received a Rocket Launcher from a helpful Derelict 4064 | -9/Mines | Found a damaged Exp. Sensor Array with a note attached 4185 | -9/Mines | Discovered new exit (range 5) 4238 | -9/Mines | Entered Materials 4238 | -8/Materials | Accompanied by 1 ally 4238 | -8/Materials | Evolved 4 slots: Utility x4 4239 | -8/Materials | Loaded intel: 23 non-interactive machine locations 4240 | -8/Materials | Loaded intel: 1 garrison access location 4545 | -8/Materials | Build established: Scavenger-Mutant 4916 | -8/Materials | Build established: Mutant 5118 | -8/Materials | Garrison activated, responded to threat 5246 | -8/Materials | Garrison activated, responded to threat 5448 | -8/Materials | Discovered new exit (range 7) 5927 | -8/Materials | Build established: Skirmisher 6095 | -8/Materials | Garrison activated, responded to threat 6417 | -8/Materials | Central database locked down 6507 | -8/Materials | Discovered new exit (range 5) 6697 | -8/Materials | Entered Factory 6697 | -7/Factory | Accompanied by 1 ally 6697 | -7/Factory | Evolved 2 slots: Power x1, Utility x1 6738 | -7/Factory | Build established: Mutant 8118 | -7/Factory | Garrison activated, responded to threat 8185 | -7/Factory | Discovered new exit (range 16) 8337 | -7/Factory | Identified exit to Lower Caves 8346 | -7/Factory | Entered Lower Caves 8589 | -7/Lower Caves | Build established: Scavenger-Mutant 8660 | -7/Lower Caves | Attracted the attention of an 0b10 outpost 8720 | -7/Lower Caves | Learned 8 Factory zone layouts 9021 | -7/Lower Caves | Discovered new exit (range 3) 9128 | -7/Lower Caves | Build established: Mutant 9176 | -7/Lower Caves | Entered another Lower Caves area 9200 | -7/Lower Caves | Discovered new exit (range 8) 9643 | -7/Lower Caves | Discovered new exit (range 14) 9714 | -7/Lower Caves | Entered Zion 9830 | -7/Zion | System corruption cleaned by Quarantine Array 9909 | -7/Zion | Build established: Derelict-Mutant 9965 | -7/Zion | Discovered new exit (range 15) 9968 | -7/Zion | Given A8's code to call for help 10374 | -7/Zion | Learned Factory terminal intel 11268 | -7/Zion | Identified Decoy Drone Bay 11559 | -7/Zion | Build established: Mutant 11703 | -7/Zion | Found CR-A16's Pointy Stick 11893 | -7/Zion | Enhanced Grunt warped into view, answering call for help 11893 | -7/Zion | Enhanced Grunt warped into view, answering call for help 12007 | -7/Zion | Discovered new exit (range 3) 12007 | -7/Zion | Saw the warning signs outside the Deep Caves entrance 12015 | -7/Zion | Entered Deep Caves 12015 | -7/Deep Caves | Accompanied by 2 allies 12184 | -7/Deep Caves | Z-Facility disabled 12211 | -7/Deep Caves | Attacked by Z-Imprinter 12235 | -7/Deep Caves | Destroyed Z-Imprinter 12275 | -7/Deep Caves | Found Prototype Protection 12275 | -7/Deep Caves | Identified Zio. Weapon Casing 12285 | -7/Deep Caves | Lost 10 allies 12326 | -7/Deep Caves | Found Zio. Weapon Casing 12637 | -7/Deep Caves | Spotted Golem 12640 | -7/Deep Caves | Destroyed Golem 12693 | -7/Deep Caves | Spotted Golem 12695 | -7/Deep Caves | Exposed GOLEM chamber 12696 | -7/Deep Caves | Triggered Deep Caves wall 12697 | -7/Deep Caves | Spotted Assembler 12710 | -7/Deep Caves | Core integrity fell below 50% 12715 | -7/Deep Caves | Core integrity fell below 20% 12718 | -7/Deep Caves | Destroyed by Golem with Assembled Focal Cannon Last Messages --------------- 12713_ as-58807 destroyed. 12714_ Hardlight Generator destroyed. 12715_ as-35164 released from Mobile Assembly Unit. 12715_ GOLEM Unit springs to life. 12716_ Golem GOLEM Unit beginning Prototype Leg integration. 12716_ Destroyed Asb. F-torch. 12716_ as-14543 destroyed. 12716_ as-72039 destroyed. 12716_ YOLO Cannon destroyed. 12716_ Destroyed YOLO Cannon. 12716_ as-76747 destroyed. 12716_ as-75767 destroyed. 12716_ as-47697 destroyed. 12716_ Destroyed Asb. Hover System. 12716_ as-68609 destroyed. 12716_ as-59641 destroyed. 12718_ Penetrated by Slug. 12718_ Zio. Biocell destroyed. Map ----- +----------------------------------------------------+ | | | | | | | | | | | ????????????????????????????????????????????? | | ????????????????????????????????????????????? | | ????????????????????????????????????????????? | | ????????????????????????????????????????????? | | ????????????????????????????????????????????? | | ?????????????????? ? ???????????????????????? | | ???????????????? # ? ???????????????????????? | | ????????????? ? ???????????????????????? | | ??????????? # ???#???????????????????? | | ?????????? ?? #???????????????????? | | ?????????"" ?? #???????????????????? | | ????????" ## #???????????????????? | | ????????" # ####????????????????? | | ????????" G ?????????????????? | | ???????## ] ??????????????????? | | ???????"G! ???????????????????? | | ???????"GG ;##?????????????? ?? | | ????????"G ?????????????? ? | | ????????"G !% !] ;#?##???????????? ?? | | ????????"" a !%= %%=;#? #??????????? #?? | | ????????# %! =@ ;## ####???????? #?? | | ??????"% a % % %% # #??????? ??? | | ????? % % % % % ##????????# ???? | | ??????% a a ###?????# ????? | | ?????? a%% #???## ?????? | | ??????? a%% = ###??## #??##### | | ??????? % ##?### #?## # | | ??????? a = b ### #?? ? | | ???????? ## % #?? ?? | | ???????? a = ## #??# #??? | | ????????? A M = ## #### ##?? | | ?????????" *=* ##### ## ##? | | ?????????" = #???# # #? | | ?????????" h M #???# #?? | | ?????????" * ##??#### ##?? | | ?????????" *= #?????# #??# | | ????????? = #?????# #### | | ????????? #?????# | | ????????? = = ####### | | ????????" = = | | ??????????" = ### | | ????????" [[ #?# | | ?????????" ###### #?# | | ????????" #????## ##?# | | ?????????" ##?????####??## | +----------------------------------------------------+ Best States ------------- Heat Dissipation 70 Energy Generation 49 Energy Capacity 640 Matter Stores 300 Matter Capacity 300 Sight Range 16 Terrain Scan Range 16 Terrain Scan Density 10 Armor Coverage 400 Weapon Shielding 100 Evasion (%) 40 Targeting Accuracy 8 Target Analysis 5 Recoil Reduction 2 Defensive Hacking 10 Item Schematics ----------------- Adv. Sensor Array | -7/Zion | Archive EM Disruption Field | -7/Zion | Archive Falx | -7/Zion | Archive Imp. Component Analysis Suite | -7/Zion | Archive Hvy. Ion Cannon | -7/Zion | Archive Hvy. Plasma Cannon | -7/Zion | Archive Core Analyzer | -7/Zion | Archive Magnetic Acceleration Cannon | -7/Zion | Archive Lyr. Light Armor Plating | -7/Zion | Archive Phase Shifter | -7/Zion | Archive Xenon Bombardment Thruster | -7/Zion | Archive Nuclear Pulse Thruster | -7/Zion | Archive Proton Missile Launcher | -7/Zion | Archive Adv. Cooling System | -7/Zion | Archive Robot Schematics ------------------ K-01 Serf | -7/Zion | Archive A-02 Transporter | -7/Zion | Archive L-61 Swordsman | -7/Zion | Archive Fabricated ------------ Nothing Repaired ---------- Lgt. Treads | 65% | -10/Materials Studied --------- Lgt. Treads | -8/Materials | Hacked Minigun | -8/Materials | Hacked Shotgun | -8/Materials | Hacked Alien Tech Used ----------------- None Achievements -------------- None Challenges ------------ None Game ------ Seed PointKineticProcessor Manual? 0 Play Time 01:07:04 Cumulative 258.6 hours Start 2026.08.23 @ 19:58:57 End 2026.08.24 @ 15:05:59 Sessions 2 Manual Loads 0 Difficulty Rogue Special Mode None Game No. 146 Rogue 146 Adventurer 0 Explorer 0 Win Type - Total 5 Types 5/0/0/0/0/0/0/0/0/0 Lore% 81 Gallery% 70 Achievement% 61 Wizard Run 0 Options --------- Layout 1 ASCII 0 Keyboard 0 Movement Numpad Keybinds 0 Fullscreen 1 Font 24/Smallcaps Map View 50x35 Zoom Use 0% Tactical HUD 1 Map Filters NONE Filters NONE Steam 1 RUN: 07073c97-b737-459f-b1e2-5d0e48aaf0a4